fUSD/lending_fUSD_20260605
["ID","MTS","AMOUNT","RATE_DAILY","PERIOD"]
[424152696,1780613445000,-408.24,0.00024946,7]
[424152691,1780613445000,-408.24,0.00024658,2]
[424152692,1780613445000,-762.19,0.00024796,7]
[424152693,1780613445000,-558.46,0.000248,7]
[424152695,1780613445000,-500.0,0.00024888,2]
[424152690,1780613445000,-1000.0,0.00024658,2]
[424152708,1780613445000,-1014.11159556,0.00025,2]
[424152697,1780613445000,-231.0,0.00025,2]
[424152689,1780613445000,-242.02,0.00024658,2]
[424152694,1780613445000,-500.0,0.00024888,2]
[424152699,1780613445000,-1406.14826962,0.00025,2]
[424152700,1780613445000,-1754.08011105,0.00025,2]
[424152711,1780613445000,-614.83612588,0.00025003,2]
[424152701,1780613445000,-622.15045654,0.00025,2]
[424152702,1780613445000,-374.34271201,0.00025,2]
[424152710,1780613445000,-1000.0,0.00025,2]
[424152704,1780613445000,-299.71410742,0.00025,2]
[424152707,1780613445000,-544.66361116,0.00025,2]
[424152709,1780613445000,-334.06432342,0.00025,2]
[424152703,1780613445000,-2852.43038102,0.00025,2]
[424152706,1780613445000,-2409.45161434,0.00025,2]
[424152698,1780613445000,-429.0,0.00025,2]
[424152740,1780613445000,-614.0,0.00026548,2]
[424152793,1780613445000,-200.0,0.00027979,2]
[424152746,1780613445000,-408.24,0.00026964,30]
[424152777,1780613445000,-187.88827401,0.00027792,2]
[424152778,1780613445000,-170.6714747,0.00027818,2]
[424152780,1780613445000,-161.31326339,0.00027818,2]
[424152781,1780613445000,-163.41185881,0.00027818,2]
[424152779,1780613445000,-166.21301721,0.00027818,2]
[424152775,1780613445000,-166.49703777,0.00027769,2]
[424152782,1780613445000,-200.26150734,0.00027818,2]
[424152784,1780613445000,-184.18259299,0.00027818,2]
[424152786,1780613445000,-215.80383714,0.00027818,2]
[424152785,1780613445000,-177.92984702,0.00027818,2]
[424152788,1780613445000,-170.95449656,0.00027818,2]
[424152787,1780613445000,-163.28709294,0.00027818,2]
[424152789,1780613445000,-408.24,0.0002783,30]
[424152783,1780613445000,-164.23492926,0.00027818,2]
[424152798,1780613445000,-1042.8951307,0.00028201,5]
[424152794,1780613445000,-600.0,0.00028,2]
[424152792,1780613445000,-959.0,0.00027971,10]
[424152791,1780613445000,-504.0,0.00027926,2]
[424152795,1780613445000,-408.24,0.00028118,2]
[424152796,1780613445000,-200.0,0.00028188,2]
[424152797,1780613445000,-1116.49493042,0.00028201,5]
[424152800,1780613445000,-1084.23028666,0.00028201,5]
[424152802,1780613445000,-1142.72550886,0.00028201,5]
[424152801,1780613445000,-1099.43778658,0.00028201,5]
[424152803,1780613445000,-1143.3797997,0.00028201,5]
[424152805,1780613445000,-1074.79167338,0.00028201,5]
[424152804,1780613445000,-1046.6387491,0.00028201,5]
[424152744,1780613445000,-408.24,0.00026676,7]
[424152790,1780613445000,-99615.0,0.000279,2]
[424152776,1780613445000,-161.87067253,0.00027769,2]
[424152799,1780613445000,-1027.88255607,0.00028201,5]
[424152769,1780613445000,-200.0,0.00027413,2]
[424152742,1780613445000,-240.067694,0.00026636,14]
[424152774,1780613445000,-558.46,0.000277,7]
[424152747,1780613445000,-1600.263084,0.00027,60]
[424152743,1780613445000,-200.0,0.00026637,2]
[424152745,1780613445000,-766.0,0.00026827,2]
[424152749,1780613445000,-1600.263085,0.00027,60]
[424152752,1780613445000,-500.0,0.00027195,2]
[424152751,1780613445000,-466.05324864,0.00027195,2]
[424152755,1780613445000,-213.38801546,0.000273,30]
[424152754,1780613445000,-1206.0,0.00027286,2]
[424152756,1780613445000,-321.22305785,0.00027397,2]
[424152757,1780613445000,-1500.0,0.00027397,2]
[424152750,1780613445000,-504.0,0.00027137,2]
[424152760,1780613445000,-3083.68,0.00027397,2]
[424152753,1780613445000,-408.24,0.00027253,2]
[424152758,1780613445000,-6009.6,0.00027397,2]
[424152762,1780613445000,-1022.03,0.00027397,2]
[424152759,1780613445000,-528.6,0.00027397,2]
[424152764,1780613445000,-1000.0,0.00027397,20]
[424152765,1780613445000,-21182.06,0.00027397,10]
[424152766,1780613445000,-1707.67,0.000274,7]
[424152763,1780613445000,-300.0,0.00027397,2]
[424152768,1780613445000,-1002.44,0.000274,14]
[424152767,1780613445000,-1179.31,0.000274,7]
[424152772,1780613445000,-762.19,0.00027591,7]
[424152761,1780613445000,-242.02,0.00027397,2]
[424152773,1780613445000,-10338.00722513,0.00027628,2]
[424152770,1780613445000,-500.0,0.000275,7]
[424152771,1780613445000,-408.24,0.00027541,7]
[424152861,1780613446000,-627.26,0.0002863,30]
[424152860,1780613446000,-1689.0,0.00028587,2]
[424152851,1780613446000,-1950.0,0.00028587,2]
[424152841,1780613446000,-300.0,0.00028518,2]
[424152840,1780613446000,-300.0,0.00028518,2]
[424152835,1780613446000,-1450.0,0.0002851,2]
[424152849,1780613446000,-1950.0,0.00028587,2]
[424152842,1780613446000,-300.0,0.00028518,2]
[424152848,1780613446000,-1950.0,0.00028587,2]
[424152844,1780613446000,-300.0,0.00028518,2]
[424152847,1780613446000,-153.0,0.00028518,2]
[424152859,1780613446000,-1950.0,0.00028587,2]
[424152839,1780613446000,-300.0,0.00028518,2]
[424152862,1780613446000,-961.66,0.0002863,30]
[424152872,1780613446000,-5530.0,0.000287,3]
[424152864,1780613446000,-955.56,0.0002863,30]
[424152850,1780613446000,-1950.0,0.00028587,2]
[424152866,1780613446000,-1256.08,0.0002863,30]
[424152865,1780613446000,-624.47,0.0002863,30]
[424152852,1780613446000,-1950.0,0.00028587,2]
[424152854,1780613446000,-1950.0,0.00028587,2]
[424152853,1780613446000,-1950.0,0.00028587,2]
[424152857,1780613446000,-1950.0,0.00028587,2]
[424152867,1780613446000,-222.47,0.00028631,2]
[424152869,1780613446000,-222.47,0.00028694,30]
[424152871,1780613446000,-1179.31,0.000287,7]
[424152870,1780613446000,-408.24,0.00028695,30]
[424152843,1780613446000,-300.0,0.00028518,2]
[424152863,1780613446000,-1258.87,0.0002863,30]
[424152837,1780613446000,-1270.0,0.0002851,2]
[424152811,1780613446000,-1029.1264099,0.00028201,5]
[424152838,1780613446000,-300.0,0.00028518,2]
[424152874,1780613446000,-222.47,0.00028726,2]
[424152806,1780613446000,-1073.0408491,0.00028201,5]
[424152807,1780613446000,-1134.96879374,0.00028201,5]
[424152809,1780613446000,-1051.95478219,0.00028201,5]
[424152810,1780613446000,-1034.80321394,0.00028201,5]
[424152808,1780613446000,-1086.78890109,0.00028201,5]
[424152822,1780613446000,-3745.4,0.00028267,2]
[424152812,1780613446000,-1028.10614884,0.00028201,5]
[424152823,1780613446000,-437.4,0.00028344,2]
[424152814,1780613446000,-1111.5115708,0.00028201,5]
[424152815,1780613446000,-1033.86943893,0.00028201,5]
[424152819,1780613446000,-1137.06037149,0.00028201,5]
[424152817,1780613446000,-1035.57983357,0.00028201,5]
[424152816,1780613446000,-1023.70759757,0.00028201,5]
[424152821,1780613446000,-504.62739579,0.00028221,2]
[424152818,1780613446000,-1041.56946931,0.00028201,5]
[424152820,1780613446000,-1100.56602567,0.00028201,5]
[424152824,1780613446000,-450.0,0.00028344,2]
[424152827,1780613446000,-1002.44,0.000285,14]
[424152825,1780613446000,-408.24,0.00028406,7]
[424152826,1780613446000,-168.17,0.00028493,2]
[424152828,1780613446000,-1450.0,0.0002851,2]
[424152829,1780613446000,-1450.0,0.0002851,2]
[424152831,1780613446000,-1450.0,0.0002851,2]
[424152834,1780613446000,-1450.0,0.0002851,2]
[424152833,1780613446000,-1450.0,0.0002851,2]
[424152832,1780613446000,-1450.0,0.0002851,2]
[424152830,1780613446000,-1450.0,0.0002851,2]
[424152836,1780613446000,-1450.0,0.0002851,2]
[424152845,1780613446000,-300.0,0.00028518,2]
[424152877,1780613446000,-627.26,0.00028797,7]
[424152813,1780613446000,-1042.0915583,0.00028201,5]
[424152875,1780613446000,-222.47,0.00028757,7]
[424152907,1780613446000,-275.86890538,0.00029,2]
[424152908,1780613446000,-30805.46185503,0.00029,7]
[424152918,1780613446000,-323.74134505,0.00029077,2]
[424152910,1780613446000,-1879.91081366,0.00029,2]
[424152912,1780613446000,-1879.91081365,0.00029,2]
[424152909,1780613446000,-294.0,0.00029,5]
[424152913,1780613446000,-310.93688573,0.00029011,2]
[424152911,1780613446000,-1879.91081365,0.00029,2]
[424152919,1780613446000,-158.93674299,0.00029077,2]
[424152914,1780613446000,-222.47,0.00029011,2]
[424152920,1780613446000,-1000.0,0.00029083,7]
[424152926,1780613446000,-222.47,0.00029106,2]
[424152925,1780613446000,-227.89094709,0.00029106,2]
[424152922,1780613446000,-188.53927733,0.00029099,2]
[424152924,1780613446000,-183.67012409,0.000291,2]
[424152929,1780613446000,-199.44119473,0.00029127,2]
[424152921,1780613446000,-196.92523363,0.00029099,2]
[424152932,1780613446000,-193.87959644,0.00029127,2]
[424152923,1780613446000,-375.77654803,0.000291,2]
[424152931,1780613446000,-326.82371762,0.00029127,2]
[424152933,1780613446000,-400.52301467,0.00029127,2]
[424152927,1780613446000,-341.34294941,0.00029127,2]
[424152935,1780613446000,-328.46985853,0.00029127,2]
[424152928,1780613446000,-332.42603442,0.00029127,2]
[424152930,1780613446000,-322.62652677,0.00029127,2]
[424152934,1780613446000,-185.11451151,0.00029127,2]
[424152936,1780613446000,-368.36518598,0.00029127,2]
[424152938,1780613446000,-157.77367056,0.00029127,2]
[424152873,1780613446000,-504.0,0.00028715,3]
[424152916,1780613446000,-222.47,0.00029074,30]
[424152917,1780613446000,-332.99407554,0.00029077,2]
[424152937,1780613446000,-355.85969404,0.00029127,2]
[424152905,1780613446000,-10000.0,0.00029,2]
[424152915,1780613446000,-222.47,0.00029042,7]
[424152876,1780613446000,-222.47,0.00028789,30]
[424152868,1780613446000,-222.47,0.00028662,7]
[424152879,1780613446000,-1258.87,0.00028797,7]
[424152880,1780613446000,-955.56,0.00028797,7]
[424152886,1780613446000,-222.47,0.00028852,7]
[424152887,1780613446000,-222.47,0.00028884,30]
[424152892,1780613446000,-1258.87,0.00028964,2]
[424152893,1780613446000,-955.56,0.00028964,2]
[424152889,1780613446000,-222.47,0.00028947,7]
[424152890,1780613446000,-627.26,0.00028964,2]
[424152885,1780613446000,-1248.07,0.0002883,2]
[424152888,1780613446000,-222.47,0.00028916,2]
[424152884,1780613446000,-222.47,0.00028821,2]
[424152882,1780613446000,-1256.08,0.00028797,7]
[424152878,1780613446000,-961.66,0.00028797,7]
[424152883,1780613446000,-150.0,0.00028802,2]
[424152891,1780613446000,-961.66,0.00028964,2]
[424152906,1780613446000,-2453.0,0.00029,7]
[424152895,1780613446000,-1256.08,0.00028964,2]
[424152901,1780613446000,-1000.0,0.00029,2]
[424152902,1780613446000,-369.78045339,0.00029,2]
[424152903,1780613446000,-1707.67,0.00029,7]
[424152900,1780613446000,-10000.0,0.00029,2]
[424152899,1780613446000,-408.24,0.00028983,2]
[424152881,1780613446000,-624.47,0.00028797,7]
[424152897,1780613446000,-179.20247452,0.00028971,2]
[424152894,1780613446000,-624.47,0.00028964,2]
[424152904,1780613446000,-200.0,0.00029,2]
[424152898,1780613446000,-222.47,0.00028979,30]
[424152896,1780613446000,-200.0,0.00028964,2]
[424152983,1780613447000,-1388.0,0.00029401,30]
[424152971,1780613447000,-288.0,0.00029374,30]
[424152967,1780613447000,-1256.08,0.00029299,7]
[424152969,1780613447000,-368.0,0.00029374,30]
[424152973,1780613447000,-2393.0,0.00029374,30]
[424152974,1780613447000,-529.0,0.00029374,30]
[424152976,1780613447000,-332.0,0.00029386,30]
[424152975,1780613447000,-995.0,0.00029386,30]
[424152978,1780613447000,-228.0,0.00029401,30]
[424152982,1780613447000,-155.0,0.00029401,30]
[424152972,1780613447000,-377.0,0.00029374,30]
[424152970,1780613447000,-2842.0,0.00029374,30]
[424152989,1780613447000,-5530.0,0.000295,5]
[424152985,1780613447000,-622.0,0.00029401,30]
[424152988,1780613447000,-895.2,0.000295,30]
[424152984,1780613447000,-1740.0,0.00029401,30]
[424152986,1780613447000,-179.20247452,0.00029406,2]
[424152987,1780613447000,-1000.0,0.000295,2]
[424152990,1780613447000,-504.0,0.00029504,4]
[424152999,1780613447000,-150.0,0.00029865,20]
[424152991,1780613447000,-1518.21946201,0.00029527,5]
[424153000,1780613447000,-3551.0,0.00029869,2]
[424152992,1780613447000,-150.0,0.00029534,2]
[424152968,1780613447000,-1002.44,0.000293,14]
[424152998,1780613447000,-408.24,0.00029848,2]
[424152981,1780613447000,-418.0,0.00029401,30]
[424152966,1780613447000,-624.47,0.00029299,7]
[424152960,1780613447000,-836.66,0.0002929,2]
[424152963,1780613447000,-961.66,0.00029299,7]
[424153001,1780613447000,-1357.0,0.00029869,2]
[424152940,1780613447000,-326.57418588,0.00029127,2]
[424152941,1780613447000,-341.90899311,0.00029127,2]
[424152939,1780613447000,-431.60767427,0.00029127,2]
[424152943,1780613447000,-5681.68346425,0.00029131,2]
[424152942,1780613447000,-300.86756511,0.0002913,20]
[424152946,1780613447000,-1258.87,0.00029132,30]
[424152947,1780613447000,-955.56,0.00029132,30]
[424152945,1780613447000,-961.66,0.00029132,30]
[424152944,1780613447000,-627.26,0.00029132,30]
[424152948,1780613447000,-624.47,0.00029132,30]
[424152956,1780613447000,-272.18,0.00029232,7]
[424152957,1780613447000,-222.52,0.00029232,7]
[424152958,1780613447000,-408.24,0.00029271,7]
[424152959,1780613447000,-2000.0,0.0002929,2]
[424152949,1780613447000,-1256.08,0.00029132,30]
[424152950,1780613447000,-222.47,0.00029137,7]
[424152952,1780613447000,-152.0,0.00029196,30]
[424152955,1780613447000,-152.0,0.0002923,30]
[424152954,1780613447000,-154.58855572,0.00029204,2]
[424152951,1780613447000,-222.47,0.00029169,30]
[424152953,1780613447000,-222.47,0.00029201,2]
[424152961,1780613447000,-317.14,0.0002929,2]
[424152964,1780613447000,-1258.87,0.00029299,7]
[424152962,1780613447000,-627.26,0.00029299,7]
[424152965,1780613447000,-955.56,0.00029299,7]
[424152993,1780613447000,-408.24,0.0002956,30]
[424152995,1780613447000,-1179.31,0.000296,7]
[424153051,1780613447000,-168.21826248,0.0003,2]
[424153028,1780613447000,-512.01442411,0.0003,2]
[424153030,1780613447000,-189.40412295,0.0003,2]
[424153032,1780613447000,-228.9226691,0.0003,2]
[424153034,1780613447000,-158.59563751,0.0003,2]
[424153029,1780613447000,-498.63905164,0.0003,2]
[424153035,1780613447000,-208.39110537,0.0003,2]
[424153033,1780613447000,-261.58037202,0.0003,2]
[424153031,1780613447000,-207.29594352,0.0003,2]
[424153037,1780613447000,-299.79928496,0.0003,2]
[424153040,1780613447000,-483.93979016,0.0003,2]
[424153050,1780613447000,-552.54777897,0.0003,2]
[424153042,1780613447000,-207.00143023,0.0003,2]
[424153039,1780613447000,-199.98862997,0.0003,2]
[424153043,1780613447000,-183.69354974,0.0003,2]
[424153041,1780613447000,-490.23557643,0.0003,2]
[424153044,1780613447000,-387.75919289,0.0003,2]
[424153045,1780613447000,-212.80808437,0.0003,2]
[424153047,1780613447000,-370.22902302,0.0003,2]
[424153046,1780613447000,-600.78452201,0.0003,2]
[424153049,1780613447000,-492.70478779,0.0003,2]
[424153048,1780613447000,-214.11853685,0.0003,2]
[424153053,1780613447000,-244.7367933,0.0003,2]
[424153054,1780613447000,-533.78954106,0.0003,2]
[424153052,1780613447000,-213.88594878,0.0003,2]
[424152996,1780613447000,-558.46,0.000297,7]
[424153038,1780613447000,-257.46780031,0.0003,2]
[424153027,1780613447000,-200.0,0.0003,2]
[424153036,1780613447000,-398.88238947,0.0003,2]
[424153023,1780613447000,-292.4130738,0.00029973,2]
[424152994,1780613447000,-501.75109673,0.00029596,2]
[424152997,1780613447000,-179.20247452,0.0002984,2]
[424153003,1780613447000,-525.0,0.00029869,2]
[424153014,1780613447000,-317.87348597,0.00029948,2]
[424153013,1780613447000,-164.92393609,0.00029948,2]
[424153002,1780613447000,-1273.0,0.00029869,2]
[424153007,1780613447000,-1058.005,0.00029869,2]
[424153022,1780613447000,-285.72710543,0.00029973,2]
[424153008,1780613447000,-418.0,0.00029869,2]
[424153011,1780613447000,-499.49111331,0.00029948,2]
[424153005,1780613447000,-200.0,0.00029869,2]
[424153009,1780613447000,-252.17389107,0.00029878,2]
[424153012,1780613447000,-485.61201758,0.00029948,2]
[424153004,1780613447000,-150.0,0.00029869,2]
[424153006,1780613447000,-277.0,0.00029869,2]
[424153016,1780613447000,-393.85046726,0.00029972,2]
[424153015,1780613447000,-198.17391839,0.00029948,2]
[424153018,1780613447000,-191.29120421,0.00029973,2]
[424153019,1780613447000,-167.97166807,0.00029973,2]
[424153021,1780613447000,-563.66482204,0.00029973,2]
[424153026,1780613447000,-1707.67,0.0003,7]
[424153017,1780613447000,-377.07855466,0.00029972,2]
[424153024,1780613447000,-2000.0,0.00029999,24]
[424153020,1780613447000,-367.34024817,0.00029973,2]
[424153010,1780613447000,-155.1405297,0.00029948,2]
[424153025,1780613447000,-173.0,0.0003,14]
[424153087,1780613448000,-500.0,0.00030137,3]
[424153091,1780613448000,-1500.0,0.00030137,15]
[424153099,1780613448000,-1500.0,0.00030137,15]
[424153094,1780613448000,-1500.0,0.00030137,15]
[424153098,1780613448000,-1500.0,0.00030137,15]
[424153100,1780613448000,-1786.246574,0.00030137,15]
[424153086,1780613448000,-500.0,0.00030137,3]
[424153096,1780613448000,-1500.0,0.00030137,15]
[424153092,1780613448000,-1500.0,0.00030137,15]
[424153093,1780613448000,-1500.0,0.00030137,15]
[424153090,1780613448000,-178.55,0.00030137,2]
[424153097,1780613448000,-265.79,0.00030137,2]
[424153095,1780613448000,-1500.0,0.00030137,15]
[424153101,1780613448000,-284.06,0.00030137,2]
[424153116,1780613448000,-1371.0,0.000302,2]
[424153113,1780613448000,-252.06,0.000302,2]
[424153112,1780613448000,-383.16,0.000302,2]
[424153103,1780613448000,-930.96359283,0.00030137,120]
[424153108,1780613448000,-930.0000003,0.00030137,120]
[424153104,1780613448000,-930.04817964,0.00030137,120]
[424153105,1780613448000,-930.00240898,0.00030137,120]
[424153106,1780613448000,-930.00012045,0.00030137,120]
[424153107,1780613448000,-930.00000602,0.00030137,120]
[424153111,1780613448000,-284.05,0.00030137,2]
[424153110,1780613448000,-284.05,0.00030137,2]
[424153109,1780613448000,-930.00000002,0.00030137,120]
[424153114,1780613448000,-1002.44,0.000302,14]
[424153085,1780613448000,-150.0,0.00030137,2]
[424153102,1780613448000,-284.05,0.00030137,2]
[424153084,1780613448000,-500.0,0.00030137,3]
[424153064,1780613448000,-1000.0,0.0003007,2]
[424153082,1780613448000,-500.0,0.00030137,3]
[424153063,1780613448000,-2000.0,0.00030029,32]
[424153065,1780613448000,-500.0,0.0003007,2]
[424153055,1780613448000,-218.15101478,0.0003,2]
[424153056,1780613448000,-216.37853026,0.0003,2]
[424153059,1780613448000,-315.54734112,0.0003,2]
[424153062,1780613448000,-512.86348967,0.0003,2]
[424153058,1780613448000,-191.54786584,0.0003,2]
[424153060,1780613448000,-647.41151141,0.0003,2]
[424153057,1780613448000,-197.42994637,0.0003,2]
[424153061,1780613448000,-489.86127882,0.0003,2]
[424153066,1780613448000,-150.0,0.00030088,2]
[424153068,1780613448000,-2453.0,0.000301,7]
[424153069,1780613448000,-150.0,0.0003013,2]
[424153083,1780613448000,-500.0,0.00030137,3]
[424153067,1780613448000,-1000.0,0.00030088,14]
[424153076,1780613448000,-2500.0,0.00030137,120]
[424153071,1780613448000,-150.0,0.0003013,2]
[424153074,1780613448000,-261.93,0.00030137,2]
[424153075,1780613448000,-1000.0,0.00030137,120]
[424153072,1780613448000,-150.0,0.00030136,2]
[424153073,1780613448000,-242.02,0.00030137,2]
[424153088,1780613448000,-500.0,0.00030137,3]
[424153089,1780613448000,-500.0,0.00030137,3]
[424153078,1780613448000,-389.20230715,0.00030137,2]
[424153077,1780613448000,-194.60115358,0.00030137,2]
[424153079,1780613448000,-583.80346073,0.00030137,2]
[424153080,1780613448000,-500.0,0.00030137,3]
[424153081,1780613448000,-500.0,0.00030137,3]
[424153070,1780613448000,-150.0,0.0003013,2]
[424153121,1780613448000,-200.21,0.00030236,30]
[424153177,1780613448000,-664.85206885,0.00030582,2]
[424153123,1780613448000,-200.23,0.00030236,30]
[424153146,1780613448000,-150.0,0.00030424,22]
[424153147,1780613448000,-550.79661784,0.00030482,4]
[424153154,1780613448000,-396.34783679,0.0003053,2]
[424153155,1780613448000,-154.40952418,0.00030553,2]
[424153165,1780613448000,-551.01037226,0.00030554,2]
[424153159,1780613448000,-199.41427773,0.00030553,2]
[424153158,1780613448000,-317.78950456,0.00030553,2]
[424153161,1780613448000,-196.48884048,0.00030554,2]
[424153164,1780613448000,-238.82427377,0.00030554,2]
[424153156,1780613448000,-590.77570088,0.00030553,2]
[424153157,1780613448000,-150.83989396,0.00030553,2]
[424153160,1780613448000,-565.61783199,0.00030553,2]
[424153163,1780613448000,-335.94333615,0.00030554,2]
[424153150,1780613448000,-665.98815108,0.0003053,2]
[424153166,1780613448000,-751.55309606,0.00030554,2]
[424153168,1780613448000,-254.69439374,0.00030554,2]
[424153171,1780613448000,-283.29765806,0.00030554,2]
[424153179,1780613448000,-378.8082459,0.00030582,2]
[424153169,1780613448000,-185.62484082,0.00030554,2]
[424153170,1780613448000,-350.7169953,0.00030554,2]
[424153178,1780613448000,-297.42160564,0.00030582,2]
[424153172,1780613448000,-571.45421086,0.00030554,2]
[424153173,1780613448000,-476.81022896,0.00030554,2]
[424153174,1780613448000,-584.8261476,0.00030554,2]
[424153175,1780613448000,-200.74373317,0.00030582,2]
[424153176,1780613448000,-682.68589882,0.00030582,2]
[424153119,1780613448000,-200.22,0.00030236,30]
[424153180,1780613448000,-414.59188704,0.00030582,2]
[424153167,1780613448000,-398.2888122,0.00030554,2]
[424153149,1780613448000,-310.28105939,0.0003053,2]
[424153162,1780613448000,-382.58240841,0.00030554,2]
[424153151,1780613448000,-255.62735591,0.0003053,2]
[424153122,1780613448000,-200.22,0.00030236,30]
[424153153,1780613448000,-167.95583231,0.0003053,2]
[424153115,1780613448000,-410.0,0.000302,2]
[424153117,1780613448000,-588.8,0.0003021,120]
[424153118,1780613448000,-200.22,0.00030236,30]
[424153126,1780613448000,-504.0,0.00030293,5]
[424153124,1780613448000,-3745.4,0.00030239,2]
[424153125,1780613448000,-179.20247452,0.00030275,2]
[424153127,1780613448000,-150.0,0.0003031,2]
[424153133,1780613448000,-377.0,0.00030374,30]
[424153132,1780613448000,-288.0,0.00030374,30]
[424153139,1780613448000,-228.0,0.00030401,30]
[424153135,1780613448000,-529.0,0.00030374,30]
[424153130,1780613448000,-368.0,0.00030374,30]
[424153128,1780613448000,-198.0,0.0003031,2]
[424153120,1780613448000,-200.21,0.00030236,30]
[424153152,1780613448000,-647.48269011,0.0003053,2]
[424153131,1780613448000,-2842.0,0.00030374,30]
[424153148,1780613448000,-150.60915763,0.00030482,4]
[424153143,1780613448000,-1740.0,0.00030401,30]
[424153144,1780613448000,-622.0,0.00030401,30]
[424153145,1780613448000,-178.9,0.00030411,120]
[424153141,1780613448000,-155.0,0.00030401,30]
[424153142,1780613448000,-1388.0,0.00030401,30]
[424153137,1780613448000,-332.0,0.00030386,30]
[424153134,1780613448000,-2393.0,0.00030374,30]
[424153140,1780613448000,-418.0,0.00030401,30]
[424153138,1780613448000,-762.19,0.00030387,7]
[424153129,1780613448000,-2000.0,0.00030332,22]
[424153136,1780613448000,-995.0,0.00030386,30]
[424153223,1780613449000,-373.3911901,0.00030582,2]
[424153224,1780613449000,-473.32101168,0.00030582,2]
[424153221,1780613449000,-394.85989273,0.00030582,2]
[424153222,1780613449000,-383.09573168,0.00030582,2]
[424153220,1780613449000,-432.75706051,0.00030582,2]
[424153212,1780613449000,-736.73037196,0.00030582,2]
[424153217,1780613449000,-489.47358659,0.00030582,2]
[424153214,1780613449000,-159.83403232,0.00030582,2]
[424153215,1780613449000,-157.50109676,0.00030582,2]
[424153216,1780613449000,-151.46468938,0.00030582,2]
[424153227,1780613449000,-683.81798623,0.00030582,2]
[424153210,1780613449000,-415.20961672,0.00030582,2]
[424153219,1780613449000,-436.30202957,0.00030582,2]
[424153226,1780613449000,-653.14837176,0.00030582,2]
[424153240,1780613449000,-277.18,0.00031,120]
[424153225,1780613449000,-863.21534854,0.00030582,2]
[424153229,1780613449000,-1179.31,0.000306,7]
[424153238,1780613449000,-3898.0,0.00030974,5]
[424153239,1780613449000,-1069.11,0.00031,30]
[424153241,1780613449000,-150.0,0.00031011,2]
[424153230,1780613449000,-300.0,0.00030625,2]
[424153242,1780613449000,-250.0,0.00031041,7]
[424153231,1780613449000,-300.0,0.00030625,2]
[424153237,1780613449000,-3024.0,0.00030974,5]
[424153232,1780613449000,-218.0,0.00030625,2]
[424153233,1780613449000,-179.20247452,0.00030709,2]
[424153234,1780613449000,-197.97538926,0.00030805,2]
[424153235,1780613449000,-2000.0,0.00030841,7]
[424153228,1780613449000,-427.77189756,0.00030582,2]
[424153213,1780613449000,-336.43652496,0.00030582,2]
[424153181,1780613449000,-200.91472526,0.00030582,2]
[424153209,1780613449000,-428.23707371,0.00030582,2]
[424153236,1780613449000,-219.7904073,0.00030933,2]
[424153192,1780613449000,-778.40461431,0.00030582,2]
[424153193,1780613449000,-364.0367666,0.00030582,2]
[424153191,1780613449000,-599.59856992,0.00030582,2]
[424153182,1780613449000,-329.11110173,0.00030582,2]
[424153183,1780613449000,-340.81357991,0.00030582,2]
[424153187,1780613449000,-240.72063828,0.00030582,2]
[424153185,1780613449000,-523.16074405,0.00030582,2]
[424153184,1780613449000,-457.84533819,0.00030582,2]
[424153188,1780613449000,-317.19127502,0.00030582,2]
[424153190,1780613449000,-598.3235842,0.00030582,2]
[424153186,1780613449000,-154.67999322,0.00030582,2]
[424153189,1780613449000,-416.78221074,0.00030582,2]
[424153211,1780613449000,-656.93971706,0.00030582,2]